bitfinex/quotes_ETHUSD_20251217
["timestamp","ask_amount","ask_price","bid_price","bid_amount"]
[1766000938214,6.61708023,2822.7,2821.8,4.0104]
[1766000938387,0.46438023,2822.5,2821.7,6.9483]
[1766000938585,0.46438023,2822.6,2821.5,6.3803]
[1766000938915,0.46438023,2822.6,2821.2,6.3803]
[1766000938916,2.2662,2822.5,2821.2,6.3803]
[1766000939093,3.8865,2822.2,2821.3,6.3803]
[1766000939298,6.1527,2822.2,2821.3,6.3803]
[1766000939508,2.2662,2822.0,2821.0,6.9483]
[1766000939695,2.2662,2821.7,2821.0,4.0104]
[1766000940587,0.46438023,2822.2,2821.1,4.0104]
[1766000940787,0.04268943,2821.7,2820.1,4.0104]
[1766000941017,2.73058023,2821.4,2820.4,2.3699]
[1766000941209,2.2662,2821.3,2820.5,4.0104]
[1766000941408,3.8865,2821.2,2820.1,6.3803]
[1766000941609,2.28896295,2821.7,2820.2,4.0104]
[1766000941610,4.26277371,2821.1,2820.2,4.0104]
[1766000941917,3.8865,2821.1,2820.4,0.002]
[1766000942491,6.1527,2821.1,2820.4,0.002]
[1766000943223,6.1527,2821.1,2820.1,0.568]
[1766000943224,3.8865,2820.5,2820.0,0.002]
[1766000943518,3.8865,2820.5,2819.4,4.0124]
[1766000943519,2.2662,2820.0,2819.4,0.002]
[1766000944220,0.46438023,2820.7,2819.4,0.002]
[1766000944221,4.292004,2820.7,2819.4,0.002]
[1766000944421,0.46438023,2820.4,2819.7,2.3699]
[1766000944620,2.2662,2820.6,2819.7,6.3803]
[1766000945122,0.46438023,2820.5,2819.7,6.3803]
[1766000945422,0.46438023,2820.5,2819.4,0.002]
[1766000945423,0.46438023,2820.7,2819.4,0.002]
[1766000945723,2.2662,2820.1,2819.4,0.002]
[1766000945921,6.1527,2820.1,2819.4,0.002]
[1766000946522,0.46438023,2820.4,2819.5,4.0104]
[1766000946719,0.04268943,2820.6,2819.9,6.3803]
[1766000947024,0.04268943,2821.2,2820.1,4.0104]
[1766000947025,2.2662,2821.2,2820.1,4.0104]
[1766000947196,0.568,2821.1,2820.3,4.0104]
[1766000947618,1.03238023,2821.1,2820.3,4.0104]
[1766000947924,0.568,2821.1,2820.3,4.0104]
[1766000948222,1.03238023,2821.1,2820.3,4.0104]
[1766000948622,0.568,2821.1,2820.3,7.0913895]
[1766000948799,2.2662,2822.0,2820.4,4.75499491]
[1766000948995,0.568,2821.9,2820.6,0.405504]
[1766000949199,0.568,2821.9,2820.9,1.9617]
[1766000949409,1.03238023,2821.9,2821.0,4.0104]
[1766000949608,0.90212697,2821.9,2821.0,4.0104]
[1766000949807,0.568,2822.3,2821.5,3.9614]
[1766000950015,2.8987,2822.3,2821.5,3.9614]
[1766000950224,2.8987,2822.3,2821.2,1.9617]
[1766000950225,2.3307,2822.2,2821.2,1.9617]
[1766000950422,2.3307,2822.2,2821.3,3.9614]
[1766000950598,0.69408,2822.1,2821.3,3.9614]
[1766000951596,2.3307,2822.2,2821.3,3.9614]
[1766000952122,2.3307,2822.2,2821.4,4.0647]
[1766000953033,4.0202,2822.1,2820.4,0.70913895]
[1766000953238,2.1856,2821.6,2820.6,6.0264]
[1766000953433,2.1856,2821.6,2820.7,4.0647]
[1766000953434,0.568,2821.5,2820.7,4.0647]
[1766000953625,2.1856,2821.6,2820.7,4.0647]
[1766000953832,0.568,2821.5,2820.7,4.0647]
[1766000954005,0.568,2821.5,2820.7,6.0264]
[1766000954350,2.46096,2821.4,2820.5,4.0647]
[1766000954504,4.0202,2821.3,2820.3,0.002]
[1766000954698,2.1856,2821.2,2820.3,0.002]
[1766000954904,4.0202,2821.0,2820.3,0.002]
[1766000955223,2.1856,2820.7,2820.3,0.002]
[1766000955531,2.7536,2820.6,2819.6,4.0647]
[1766000955737,0.568,2820.5,2819.8,4.0647]
[1766000956637,0.568,2820.8,2820.2,6.0264]
[1766000956815,0.568,2820.7,2820.4,4.0647]
[1766000957018,0.568,2820.7,2820.0,4.0647]
[1766000958143,4.0202,2820.6,2819.7,0.46438023]
[1766000958327,2.7536,2820.7,2819.9,4.0647]
[1766000958636,2.1856,2820.3,2819.2,4.0647]
[1766000958811,2.1856,2820.0,2819.2,4.0647]
[1766000959015,6.2058,2820.0,2819.3,0.002]
[1766000959327,0.21856,2819.9,2819.3,0.002]
[1766000959501,0.568,2819.8,2819.3,0.002]
[1766000959708,0.46438023,2820.4,2819.4,4.0647]
[1766000960012,0.26499802,2820.3,2819.4,4.0647]
[1766000960842,2.1856,2820.3,2819.4,4.0647]
[1766000961503,4.0202,2820.2,2819.3,0.002]
[1766000961704,2.1856,2820.1,2819.3,0.002]
[1766000961906,2.1856,2820.1,2819.3,4.0667]
[1766000962433,2.64998023,2820.5,2819.4,4.0647]
[1766000962735,2.64998023,2820.5,2819.5,4.0647]
[1766000962939,2.64998023,2820.5,2819.6,4.0647]
[1766000963107,4.0202,2820.4,2819.4,0.95754455]
[1766000963307,2.1856,2820.2,2819.3,4.0667]
[1766000964537,2.1856,2820.2,2819.3,3.5489312]
[1766000964738,0.001,2820.6,2819.7,1.9617]
[1766000964927,2.22828943,2821.1,2820.2,1.9617]
[1766000965132,2.22828943,2821.1,2820.2,6.0264]
[1766000965333,2.69266966,2821.1,2820.3,4.0647]
[1766000965505,2.1856,2821.5,2820.4,4.0647]
[1766000965838,0.22282894,2821.3,2820.6,4.0647]
[1766000967441,2.64998023,2821.5,2820.6,4.0647]
[1766000967632,0.46438023,2821.5,2820.6,1.9617]
[1766000967946,0.04268943,2821.7,2820.8,4.0647]
[1766000968314,0.04268943,2821.7,2820.9,4.0647]
[1766000969039,0.46538023,2821.8,2820.9,4.0647]
[1766000969541,0.001,2821.8,2820.9,3.5449245]
[1766000969735,0.001,2821.8,2821.1,4.0647]
[1766000970311,0.001,2821.8,2820.6,0.568]
[1766000970542,6.2058,2821.7,2820.8,4.0647]
[1766000971046,2.64998023,2821.6,2820.8,4.0647]
[1766000971346,6.2058,2821.1,2820.0,4.0647]
[1766000971643,2.1856,2821.1,2820.2,1.9617]
[1766000971832,2.1856,2821.1,2820.3,4.0647]
[1766000972411,0.46438023,2821.4,2820.4,4.0647]
[1766000972640,0.46438023,2821.3,2820.4,4.0647]
[1766000972950,2.64998023,2821.3,2820.4,4.0647]
[1766000973449,2.1856,2821.3,2820.4,4.0647]
[1766000973612,6.2058,2821.3,2820.4,4.0647]
[1766000974045,4.0202,2821.3,2820.4,4.0647]
[1766000974210,0.04268943,2821.6,2820.5,4.0647]
[1766000974211,0.46438023,2821.4,2820.5,4.0647]
[1766000974416,2.64998023,2821.5,2820.6,4.0647]
[1766000974747,0.001,2821.7,2821.0,4.0647]
[1766000975139,0.001,2821.7,2821.1,1.9617]
[1766000975340,0.001,2821.7,2821.0,4.0647]
[1766000975536,0.001,2821.7,2821.0,4.8256584]
[1766000975737,2.1866,2821.7,2820.8,0.568]
[1766000976051,2.1866,2821.7,2820.7,4.0647]
[1766000976052,0.001,2821.7,2820.7,4.0647]
[1766000976221,0.001,2821.7,2820.8,6.0264]
[1766000976420,2.1866,2821.7,2820.8,6.0264]
[1766000976735,2.1866,2821.7,2820.9,4.0647]
[1766000976918,0.001,2821.7,2821.1,4.0647]
[1766000977553,4.06288943,2822.3,2821.1,4.0647]
[1766000977554,4.0202,2822.6,2821.5,1.9617]
[1766000977752,4.0202,2822.6,2821.7,4.0647]
[1766000977959,0.50706966,2822.5,2821.7,4.0647]
[1766000978441,4.0202,2822.6,2821.7,4.0647]
[1766000978648,6.2058,2822.6,2821.7,4.0647]
[1766000978857,0.46438023,2822.5,2821.7,4.0647]
[1766000980140,0.04268943,2822.7,2821.8,6.0264]
[1766000980450,4.48458023,2822.8,2821.9,4.0647]
[1766000980645,2.64998023,2822.7,2821.9,4.0647]
[1766000980946,6.1096,2822.4,2821.5,3.9943]
[1766000981349,2.3494,2822.8,2821.9,3.9943]
[1766000981646,2.81378023,2822.8,2822.0,3.9943]
[1766000982019,0.001,2822.6,2822.0,3.9943]
[1766000983034,0.001,2822.6,2821.4,3.9943]
[1766000983236,2.3494,2822.3,2821.4,3.9943]
[1766000984038,0.46438023,2822.4,2821.5,1.9617]
[1766000984240,0.46438023,2822.4,2821.6,3.9943]
[1766000984436,2.81378023,2822.1,2821.0,3.9943]
[1766000984641,6.1096,2822.1,2821.1,3.9943]
[1766000985990,2.3494,2821.8,2820.9,0.568]
[1766000986472,2.3494,2821.8,2821.0,3.9943]
[1766000988476,6.1096,2821.7,2820.9,3.86]
[1766000988674,2.3494,2821.5,2820.9,3.86]
[1766000988832,2.3494,2821.5,2820.6,3.9943]
[1766000989032,6.1096,2821.4,2820.6,3.9943]
[1766000989233,3.80288943,2821.7,2820.6,1.9617]
[1766000989568,0.04268943,2821.7,2820.8,1.9617]
[1766000989809,0.04268943,2821.7,2820.9,3.9943]
[1766000990017,0.04268943,2821.7,2820.9,3.9963]
[1766000990183,2.3494,2821.6,2820.9,0.002]
[1766000990382,6.1096,2821.6,2820.9,0.002]
[1766000990600,3.7602,2821.5,2820.9,0.002]
[1766000990905,2.3494,2821.2,2820.9,0.002]
[1766000991408,6.1096,2821.5,2820.9,0.002]
[1766000991579,0.04268943,2821.7,2820.9,0.002]
[1766000991777,3.7602,2821.6,2820.9,0.002]
[1766000991978,2.3494,2821.4,2820.9,0.002]
[1766000992305,2.3494,2821.3,2820.9,0.002]
[1766000992971,3.7602,2821.5,2820.9,0.002]
[1766000993680,2.81478023,2821.8,2820.9,3.9963]
[1766000994010,2.3504,2821.8,2820.9,3.9963]
[1766000994169,2.3504,2821.8,2821.0,3.9943]
[1766000994694,2.3504,2821.8,2821.1,3.9943]
[1766000994695,0.001,2821.8,2821.1,3.9943]
[1766000995298,0.001,2821.8,2821.3,3.9943]
[1766000995502,0.04268943,2822.3,2821.7,3.9943]
[1766000996368,2.39208943,2822.5,2821.6,3.9943]
[1766000996583,0.04268943,2822.5,2821.7,3.9943]
[1766000996784,0.04268943,2822.5,2821.8,3.9943]
[1766000996993,0.47378534,2822.5,2821.8,3.9943]
[1766000997710,0.46538023,2822.6,2821.8,3.9943]
[1766000997909,0.001,2822.6,2822.2,3.9943]
[1766000998777,0.001,2822.6,2822.3,3.9943]
[1766000999615,0.001,2822.5,2822.3,3.9943]
[1766000999793,0.001,2822.5,2821.9,5.956]
[1766000999994,0.001,2822.5,2821.9,6.6084]
[1766001000304,0.04368943,2823.5,2821.9,0.6524]
[1766001000487,0.001,2823.5,2822.6,3.9943]
[1766001000825,2.3494,2823.2,2822.2,1.9617]
[1766001000984,6.1096,2823.0,2822.2,3.9943]
[1766001001385,6.1096,2822.9,2821.9,3.9943]
[1766001001581,2.3494,2822.4,2820.5,3.54541571]
[1766001001815,0.04268943,2822.7,2821.8,3.9943]
[1766001001984,0.04268943,2822.7,2822.2,3.9943]
[1766001002181,0.04268943,2822.7,2821.9,1.9617]
[1766001002485,0.04268943,2822.7,2821.7,0.568]
[1766001002486,3.80288943,2822.7,2821.7,0.568]
[1766001002688,2.81378023,2822.5,2821.6,3.9943]
[1766001003021,0.46438023,2822.5,2821.3,4.11245061]
[1766001003225,0.46438023,2822.5,2821.7,1.9617]
[1766001003536,0.38028894,2822.6,2821.8,5.956]
[1766001003693,2.3494,2822.8,2821.8,5.956]
[1766001003694,0.50706966,2822.9,2822.0,1.9617]
[1766001003896,2.81378023,2822.8,2821.8,3.9943]
[1766001004097,2.3494,2822.5,2821.8,3.9943]
[1766001004430,2.81378023,2822.5,2821.8,3.9943]
[1766001004937,2.3494,2822.1,2821.4,3.9943]
[1766001005136,0.04268943,2822.5,2821.3,1.9617]
[1766001005137,3.09515825,2822.4,2821.3,1.9617]
[1766001005344,3.09515825,2822.4,2821.4,3.9943]
[1766001005653,6.1096,2822.3,2821.4,3.9943]
[1766001005860,2.81378023,2822.2,2821.4,3.9943]
[1766001006068,2.3494,2822.0,2821.1,3.9943]
[1766001006215,2.3494,2821.9,2821.1,3.9943]
[1766001007044,2.81378023,2821.9,2821.1,3.9943]
[1766001007410,6.1096,2821.9,2821.1,3.9943]
[1766001007611,2.3494,2821.7,2820.9,0.002]
[1766001008224,0.04268943,2822.3,2820.9,0.002]
[1766001008225,0.04268943,2821.9,2820.9,0.002]
[1766001008408,0.46438023,2821.7,2820.9,0.002]
[1766001008634,2.3494,2821.6,2820.9,0.002]
[1766001009146,3.7602,2821.3,2820.9,0.002]
[1766001009349,2.81378023,2821.2,2820.4,3.9943]
[1766001009749,2.68438023,2821.1,2820.4,3.9943]
[1766001009957,2.68438023,2820.8,2819.7,0.002]
[1766001010154,2.22,2820.8,2819.8,3.762]
[1766001010344,2.22,2820.8,2819.7,0.002]
[1766001010345,0.46438023,2821.1,2820.2,3.762]
[1766001010546,2.68438023,2821.1,2820.2,3.762]
[1766001010848,0.65693802,2821.0,2820.2,3.762]
[1766001011050,2.71018023,2820.9,2820.2,3.762]
[1766001011251,2.71018023,2820.7,2819.8,5.5941]
[1766001011450,5.8894,2820.7,2819.8,5.5941]
[1766001011652,2.2458,2820.5,2819.8,3.6304]
[1766001011830,3.6436,2820.5,2819.7,0.002]
[1766001012034,0.46438023,2820.3,2819.7,0.002]
[1766001012255,2.71018023,2820.3,2819.7,0.002]
[1766001012468,0.46438023,2820.3,2819.7,0.002]
[1766001012872,2.2458,2820.4,2819.7,0.002]
[1766001013171,2.2458,2820.0,2819.7,0.002]
[1766001014543,5.8894,2820.0,2819.7,0.002]
[1766001015949,3.6436,2820.0,2819.7,0.002]
[1766001016277,5.8894,2819.7,2819.4,0.002]
[1766001016477,0.40575085,2820.5,2819.7,3.6304]
[1766001016645,0.04268943,2820.5,2819.9,3.6304]
[1766001016844,4.15066966,2820.5,2819.5,4.1984]
[1766001017049,2.2458,2820.4,2819.6,0.61661]
[1766001017247,3.6436,2820.1,2819.4,0.002]
[1766001017453,2.71018023,2820.0,2819.4,0.002]
[1766001017953,3.6436,2819.7,2819.4,0.002]
[1766001018174,2.61016,2819.6,2819.4,0.002]
[1766001019069,2.75286966,2820.0,2819.4,0.002]
[1766001019273,0.50706966,2820.0,2819.4,0.002]
[1766001019478,0.04268943,2820.0,2819.5,3.6304]
[1766001019665,0.04268943,2820.0,2819.4,0.002]
[1766001019666,3.6436,2820.1,2819.4,0.002]
[1766001019867,2.71018023,2820.0,2819.4,0.002]
[1766001020066,0.46438023,2820.2,2819.4,0.002]
[1766001020268,0.04268943,2820.1,2819.4,0.002]
[1766001020466,2.2458,2819.6,2818.8,0.002]
[1766001020665,2.2458,2819.7,2818.8,0.002]
[1766001020865,3.6436,2819.2,2818.8,0.002]
[1766001021163,3.6436,2819.1,2818.8,0.002]
[1766001021363,5.8894,2819.0,2818.6,0.002]
[1766001022658,3.6436,2818.9,2818.6,0.002]
[1766001022868,3.6436,2818.7,2818.2,0.002]
[1766001023071,2.71018023,2818.9,2818.2,0.002]
[1766001023486,2.71018023,2818.9,2818.2,3.6324]
[1766001024489,2.71018023,2819.2,2818.2,5.6041]
[1766001024784,0.04268943,2819.3,2818.5,3.6304]
[1766001024987,0.04268943,2819.3,2818.6,1.9717]
[1766001025192,0.04268943,2819.3,2818.7,3.6304]
[1766001025484,2.28848943,2819.5,2818.7,3.6304]
[1766001025988,2.71018023,2819.4,2818.7,3.6304]
[1766001027456,0.46438023,2819.6,2818.8,3.6304]
[1766001027661,0.46438023,2819.5,2818.8,3.6304]
[1766001027867,2.71018023,2819.5,2818.8,3.6304]
[1766001028289,2.2458,2819.5,2818.8,3.6304]
[1766001028484,2.2458,2819.8,2818.9,3.6304]
[1766001028785,2.2458,2819.8,2819.0,3.6304]
[1766001029287,0.50706966,2819.9,2819.1,3.6304]
[1766001029487,0.50706966,2819.9,2819.4,3.6304]
[1766001029488,0.04268943,2819.9,2819.4,3.6304]
[1766001029689,0.04268943,2820.1,2819.5,3.6304]
[1766001029889,2.2458,2819.7,2818.9,0.36304]
[1766001030088,5.8894,2819.9,2819.0,3.6304]
[1766001030660,2.2458,2819.8,2819.0,3.6304]
[1766001032092,2.2458,2819.8,2819.1,3.6304]
[1766001032458,2.28848943,2820.1,2819.2,1.9717]
[1766001032654,2.28848943,2820.1,2818.6,3.54784238]
[1766001032655,0.001,2820.0,2819.4,3.6304]
[1766001032895,0.001,2820.0,2819.0,1.9717]
[1766001033063,2.71118023,2820.0,2819.1,3.6304]
[1766001033259,2.71118023,2820.0,2819.1,1.9717]
[1766001033612,2.2458,2819.9,2819.2,3.6304]
[1766001034157,3.6436,2819.8,2818.9,5.6021]
[1766001034362,5.8894,2819.5,2818.6,3.6304]
[1766001034578,3.6436,2819.8,2818.8,3.6304]
[1766001034766,2.2458,2819.7,2818.8,3.6304]
[1766001035517,0.001,2820.0,2819.1,3.6304]
[1766001035665,0.001,2820.0,2819.6,1.9717]
[1766001035866,0.001,2820.0,2819.7,3.6304]
[1766001036107,0.04268943,2820.3,2819.7,3.6304]
[1766001036318,0.04268943,2820.9,2819.9,3.6304]
[1766001036618,0.04268943,2820.9,2820.1,5.6021]
[1766001036767,0.04268943,2820.9,2819.7,0.56021]
[1766001036768,0.04268943,2820.9,2820.3,3.6304]
[1766001036974,0.04268943,2821.1,2820.4,3.6304]
[1766001037174,2.28848943,2821.1,2820.4,3.6304]
[1766001037718,0.04268943,2821.1,2820.4,3.6304]
[1766001038206,0.001,2821.2,2820.6,3.6304]
[1766001038372,0.22994894,2821.2,2820.6,3.6304]
[1766001039372,2.2458,2821.8,2820.8,1.9717]
[1766001039575,2.2458,2821.8,2820.9,3.6304]
[1766001039772,2.2458,2821.8,2821.0,3.6304]
[1766001040819,2.2286,2821.5,2820.6,3.6304]
[1766001041379,2.2286,2821.5,2820.6,5.6021]
[1766001041600,0.04268943,2821.9,2820.8,3.6304]
[1766001041813,2.27128943,2821.9,2820.9,3.6304]
[1766001042124,0.001,2821.2,2820.9,3.6304]
[1766001042504,2.69298023,2821.6,2820.9,3.6304]
[1766001042704,0.46438023,2821.9,2820.4,0.568]
[1766001042905,0.04268943,2822.1,2821.1,3.6304]
[1766001043106,0.04268943,2822.1,2821.3,3.6304]
[1766001043307,0.04268943,2822.1,2821.4,3.66584339]
[1766001043510,0.04268943,2822.1,2821.5,3.6304]
[1766001043793,5.94608943,2822.3,2821.6,1.9717]
[1766001043794,0.001,2822.3,2821.6,1.9717]
[1766001043997,0.001,2822.3,2821.9,3.6304]
[1766001045904,0.001,2822.3,2821.5,1.9717]
[1766001046166,0.001,2822.3,2821.5,5.6021]
[1766001046441,0.001,2822.3,2821.6,3.6304]
[1766001046733,0.001,2822.3,2821.6,1.9717]
[1766001046892,0.001,2822.3,2821.7,3.6304]
[1766001047912,2.2296,2822.3,2821.5,1.9717]
[1766001048230,2.2296,2822.3,2821.4,3.6304]
[1766001048395,2.2286,2822.1,2821.4,3.6304]
[1766001048598,0.001,2822.3,2821.5,3.6304]
[1766001048834,0.001,2822.3,2821.1,3.6304]
[1766001048835,2.2296,2822.3,2821.1,3.6304]
[1766001048998,2.2286,2822.2,2821.2,3.6304]
[1766001049197,0.001,2822.3,2821.4,1.9717]
[1766001049429,0.001,2822.3,2821.9,3.6304]
[1766001049610,0.001,2822.4,2821.5,0.56021]
[1766001049611,0.001,2822.4,2822.1,3.6304]
[1766001049812,5.9024,2822.9,2822.1,3.6304]
[1766001050329,0.04368943,2823.0,2822.1,1.9717]
[1766001050630,0.04368943,2823.0,2822.2,3.6304]
[1766001050828,0.27893591,2823.0,2822.3,3.66583209]
[1766001051027,0.001,2823.0,2822.5,5.6021]
[1766001051226,0.001,2823.0,2822.6,3.6304]
[1766001051528,0.001,2823.5,2822.7,5.6021]
[1766001051733,0.001,2823.5,2822.8,3.6304]
[1766001051908,0.001,2823.5,2823.1,3.6304]
[1766001052243,0.001,2823.5,2822.8,3.6304]
[1766001052451,3.6738,2823.9,2822.7,1.9717]
[1766001052452,0.001,2824.2,2823.0,3.6304]
[1766001052598,0.001,2824.6,2823.7,2.0177]
[1766001052798,0.001,2824.6,2823.8,3.6304]
[1766001053098,3.71648943,2826.0,2824.5,5.6481]
[1766001053324,3.58112835,2826.2,2824.9,3.6304]
[1766001053325,0.18524719,2826.2,2824.9,3.6304]
[1766001053495,3.6738,2826.3,2825.1,2.0177]
[1766001053698,3.6738,2826.3,2825.3,3.6304]
[1766001053895,0.83176023,2826.2,2825.3,3.6304]
[1766001054199,3.73772711,2827.0,2824.4,0.405504]
[1766001054200,0.15771073,2827.0,2825.5,3.6304]
[1766001054502,2.2286,2826.7,2825.6,0.568]
[1766001054740,2.2286,2826.4,2825.4,5.6481]
[1766001055037,2.2286,2826.4,2825.0,2.0177]
[1766001055337,0.38100252,2826.8,2825.6,3.6304]
[1766001055338,0.001,2826.3,2825.6,3.6304]
[1766001055645,2.2286,2826.8,2825.9,3.6304]
[1766001055848,0.15771073,2827.0,2826.0,3.6304]
[1766001055997,5.9024,2826.9,2825.6,0.567]
[1766001056204,0.46438023,2826.9,2824.8,3.6304]
[1766001056405,2.69298023,2826.5,2825.1,0.46438023]
[1766001056706,2.69298023,2826.5,2825.4,3.6304]
[1766001056707,0.46438023,2826.4,2825.4,3.6304]
[1766001056907,2.2286,2826.3,2825.5,0.568]
[1766001057208,0.46438023,2826.5,2825.3,0.568]
[1766001057416,0.46438023,2826.8,2825.3,0.568]
[1766001057618,3.6738,2826.5,2825.3,0.568]
[1766001057823,0.86988423,2826.7,2825.3,0.568]
[1766001057824,5.9024,2826.3,2825.3,0.568]
[1766001058135,3.6738,2826.2,2825.1,3.6304]
[1766001058437,0.405504,2826.7,2824.8,0.567]
[1766001058438,2.2286,2825.8,2824.8,0.567]
[1766001058653,2.2286,2825.8,2824.9,3.6304]
[1766001058940,2.69298023,2825.8,2824.9,3.6304]
[1766001059243,2.2286,2825.6,2824.6,5.6481]
[1766001059653,3.6738,2825.4,2824.3,3.6304]
[1766001059938,2.2286,2825.3,2824.4,0.568]
[1766001060160,3.6738,2825.7,2824.4,2.0177]
[1766001060339,3.6738,2825.7,2824.6,3.6304]
[1766001060340,0.04268943,2825.5,2824.6,3.6304]
[1766001060513,0.04268943,2825.9,2824.6,2.0177]
[1766001060710,3.71648943,2825.9,2824.9,3.6304]
[1766001060946,3.6738,2825.5,2824.3,3.6304]
[1766001061246,0.04268943,2825.9,2824.3,2.0177]
[1766001061555,0.04268943,2825.9,2823.1,14.16874018]
[1766001061556,3.6738,2824.7,2823.1,2.0177]
[1766001061711,3.6738,2824.4,2823.4,3.6304]
[1766001061915,3.6738,2824.4,2823.3,2.0177]
[1766001061916,2.2286,2824.7,2823.1,3.6304]
[1766001062117,2.69298023,2824.4,2823.3,3.6304]
[1766001062423,2.634104,2824.6,2823.3,3.6304]
[1766001062757,2.73566966,2824.0,2822.9,3.6304]
[1766001063119,2.73566966,2824.0,2823.0,3.6304]
[1766001063319,0.04268943,2824.0,2823.2,3.6304]
[1766001063542,0.04268943,2824.0,2823.3,3.6304]
[1766001063858,0.46438023,2824.7,2823.6,3.6304]
[1766001064023,3.94309802,2824.6,2823.6,3.6304]
[1766001065122,0.04268943,2824.1,2822.5,3.54293878]
[1766001065326,0.04268943,2824.1,2823.1,2.0177]
[1766001065521,0.04268943,2824.5,2823.4,3.6304]
[1766001065728,0.04268943,2824.7,2823.8,2.0177]
[1766001065957,3.71648943,2825.2,2824.2,3.6304]
[1766001066450,0.46538023,2825.1,2824.2,3.6304]
[1766001066747,5.94508943,2825.0,2823.9,4.1984]
[1766001067149,0.04268943,2824.6,2823.1,3.6304]
[1766001067350,2.2286,2824.5,2823.4,3.6304]
[1766001067662,5.9024,2824.5,2823.4,3.6304]
[1766001067820,0.04268943,2824.6,2823.2,0.71726259]
[1766001067821,0.04268943,2824.0,2823.2,0.71726259]
[1766001068024,0.04268943,2824.0,2823.1,0.568]
[1766001068253,0.04268943,2824.4,2823.4,2.0177]
[1766001068555,0.04268943,2824.4,2823.8,3.6304]
[1766001071984,0.04604052,2824.2,2823.0,0.405504]
[1766001072268,0.04604052,2824.0,2823.1,4.1875]
[1766001072678,0.50806966,2824.6,2823.4,3.6195]
[1766001072679,0.46438023,2824.5,2823.4,3.6195]
[1766001072841,0.51042075,2824.5,2823.5,4.1875]
[1766001073243,2.77638023,2824.4,2823.5,4.1875]
[1766001073485,0.04604052,2823.7,2822.5,3.6195]
[1766001073650,0.04604052,2823.7,2822.8,3.6195]
[1766001073990,0.04604052,2823.7,2822.9,3.6195]
[1766001074172,3.8732,2823.4,2822.3,3.6195]
[1766001074344,2.312,2823.3,2822.3,3.6195]
[1766001074541,0.405504,2824.3,2822.4,5.6372]
[1766001074745,0.04604052,2824.5,2823.1,3.6195]
[1766001075045,0.04604052,2824.5,2823.5,3.6195]
[1766001075246,0.04604052,2824.3,2823.7,3.6195]
[1766001075446,0.04604052,2824.3,2823.3,3.6195]
[1766001075447,0.04604052,2824.1,2823.3,3.6195]
[1766001075765,0.04604052,2823.6,2823.2,3.6195]
[1766001075951,0.04604052,2823.6,2822.7,4.1885]
[1766001076151,6.23124052,2823.6,2822.8,0.62062]
[1766001076453,0.04604052,2823.2,2822.6,5.6372]
[1766001076661,0.04604052,2823.2,2822.6,4.1885]
[1766001077190,0.04604052,2823.2,2822.3,0.56372]
[1766001077191,0.04604052,2822.9,2822.3,0.56372]
[1766001077353,2.312,2822.8,2822.0,0.002]
[1766001077558,6.1852,2822.8,2822.1,0.25887]
[1766001077752,0.04604052,2822.9,2822.1,3.6195]
[1766001078164,3.91924052,2822.9,2822.0,0.002]
[1766001078375,0.04604052,2822.4,2822.0,0.002]
[1766001078857,0.04604052,2822.4,2822.0,3.6215]
[1766001080154,4.052e-05,2822.4,2822.1,2.0177]
[1766001080360,0.04604052,2822.6,2822.0,0.002]
[1766001080361,4.052e-05,2822.6,2822.5,3.6195]
[1766001080559,8.104e-05,2822.9,2822.5,2.0177]
[1766001080883,8.104e-05,2822.9,2822.6,3.6195]
[1766001081063,0.04604052,2822.7,2822.2,6.40817]
[1766001081263,0.04604052,2822.7,2822.3,3.6195]
[1766001081452,2.35804052,2822.7,2822.2,0.569]
[1766001082049,0.04604052,2822.7,2822.2,0.569]
[1766001082251,0.04604052,2822.7,2822.2,4.1885]
[1766001082482,0.04604052,2823.0,2822.5,3.6195]
[1766001082676,0.04604052,2823.0,2822.4,0.569]
[1766001082980,0.04604052,2822.8,2822.2,0.41905]
[1766001083282,0.04604052,2822.8,2822.2,4.1885]
[1766001083481,0.04604052,2822.8,2822.2,3.6195]
[1766001083781,0.04604052,2822.8,2822.3,5.6372]
[1766001083983,0.04604052,2822.8,2822.4,3.6195]
[1766001084182,0.04604052,2822.8,2822.2,0.568]
[1766001084367,0.04604052,2822.8,2822.0,3.6215]
[1766001084567,0.04604052,2822.8,2822.1,0.568]
[1766001084785,0.04604052,2822.6,2822.0,3.6215]
[1766001084984,0.04604052,2822.6,2822.0,4.1895]
[1766001085361,0.04604052,2822.6,2822.1,3.6195]
[1766001085664,4.052e-05,2822.8,2822.4,1.9717]
[1766001085868,4.052e-05,2823.0,2822.8,5.5912]
[1766001086065,4.052e-05,2823.0,2822.9,3.6195]
[1766001086479,4.052e-05,2823.0,2822.6,1.9717]
[1766001086679,4.052e-05,2823.0,2822.7,3.6195]
[1766001087381,4.052e-05,2823.0,2822.4,4.1875]
[1766001087582,4.052e-05,2823.0,2822.2,1.9717]
[1766001087583,0.04604052,2822.8,2822.2,1.9717]
[1766001087756,0.04604052,2822.8,2822.1,5.07083023]
[1766001087956,0.04604052,2822.8,2822.1,4.50283023]
[1766001088152,0.04604052,2822.8,2822.1,5.07083023]
[1766001088357,6.1852,2823.7,2822.6,1.9717]
[1766001088581,6.1852,2823.7,2822.2,0.97166325]
[1766001088582,0.04604052,2823.8,2822.9,3.6195]
[1766001088982,2.82242075,2823.8,2822.9,3.6195]
[1766001089561,2.35804052,2823.8,2822.9,3.6195]
[1766001089961,2.82242075,2823.8,2822.9,3.6195]
[1766001090178,0.51042075,2823.8,2823.0,6.15032]
[1766001091090,0.51042075,2823.8,2823.2,3.6195]
[1766001091264,0.51042075,2823.8,2823.3,3.6195]